bitfinex/quotes_BTCUSD_20250718
["timestamp","ask_amount","ask_price","bid_price","bid_amount"]
[1752811626508,0.70162542,120110.0,120100.0,0.21658184]
[1752811626915,0.70162542,120110.0,120100.0,0.25596575]
[1752811627143,0.56302007,120110.0,120100.0,0.25596575]
[1752811627346,0.68497451,120110.0,120100.0,0.24174176]
[1752811627545,0.68497451,120110.0,120100.0,0.25306815]
[1752811627746,0.3823043,120110.0,120100.0,0.26139447]
[1752811628088,0.55469451,120110.0,120100.0,0.26972065]
[1752811628339,0.69340499,120110.0,120100.0,0.27804676]
[1752811628542,0.69340499,120110.0,120100.0,0.26972065]
[1752811628723,0.71005625,120110.0,120100.0,0.2863728]
[1752811628934,0.7183816,120110.0,120100.0,0.28637238]
[1752811629147,0.54354188,120110.0,120100.0,0.28876196]
[1752811629316,0.54354188,120110.0,120100.0,0.24937805]
[1752811629529,0.7183816,120110.0,120100.0,0.24937805]
[1752811629746,0.54354188,120110.0,120100.0,0.24937805]
[1752811630358,0.55186751,120110.0,120100.0,0.24937805]
[1752811630593,0.72670723,120110.0,120100.0,0.24937805]
[1752811631470,0.72670723,120110.0,120100.0,0.24698805]
[1752811632127,0.55186695,120110.0,120100.0,0.24937805]
[1752811632350,0.56019251,120110.0,120100.0,0.29096992]
[1752811632550,0.55186695,120110.0,120100.0,0.29096992]
[1752811632759,0.56019251,120110.0,120100.0,0.29096992]
[1752811633509,0.56851814,120110.0,120100.0,0.29096992]
[1752811634634,0.56019251,120110.0,120100.0,0.29096992]
[1752811635367,0.56851814,120110.0,120100.0,0.29096992]
[1752811635849,0.13556793,120110.0,120100.0,0.29096992]
[1752811636067,0.43823814,120110.0,120100.0,0.29096992]
[1752811636278,0.56019251,120110.0,120100.0,0.29096992]
[1752811636622,0.2575223,120110.0,120100.0,0.29096992]
[1752811636814,0.10226583,120110.0,120100.0,0.29096992]
[1752811637084,0.55186702,120110.0,120100.0,0.29096992]
[1752811637292,0.24087125,120110.0,120100.0,0.29096992]
[1752811637571,0.24076633,120110.0,120100.0,0.29096992]
[1752811637793,0.55176217,120110.0,120100.0,0.29096992]
[1752811638051,0.52678563,120110.0,120100.0,0.29096992]
[1752811638275,0.55176182,120110.0,120100.0,0.29096992]
[1752811638538,0.54343626,120110.0,120100.0,0.29096992]
[1752811638756,0.3965057,120110.0,120100.0,0.29096992]
[1752811638989,0.3965057,120110.0,120100.0,0.25861743]
[1752811638990,0.00832507,120110.0,120100.0,0.25861743]
[1752811639212,0.14693021,120110.0,120100.0,0.27411743]
[1752811639421,0.13860507,120110.0,120100.0,0.27411743]
[1752811640279,0.14693028,120110.0,120100.0,0.27411743]
[1752811640504,0.14671358,120110.0,120100.0,0.27411743]
[1752811641806,0.15503879,120110.0,120100.0,0.27411743]
[1752811642019,0.14671365,120110.0,120100.0,0.27411743]
[1752811642238,0.14671372,120110.0,120100.0,0.27411743]
[1752811642462,0.17125285,120110.0,120100.0,0.27411743]
[1752811643848,0.17957806,120110.0,120100.0,0.27411743]
[1752811644068,0.17125285,120110.0,120100.0,0.27411743]
[1752811644291,0.66541355,120110.0,120100.0,0.22419972]
[1752811644518,0.49889953,120110.0,120100.0,0.22180972]
[1752811645261,0.49889946,120110.0,120100.0,0.22180972]
[1752811645474,0.18790369,120110.0,120100.0,0.22180972]
[1752811645675,0.49889946,120110.0,120100.0,0.26088375]
[1752811647339,0.18790362,120110.0,120100.0,0.26088375]
[1752811647589,0.48224841,120110.0,120100.0,0.26088375]
[1752811648213,0.49057383,120110.0,120100.0,0.26088375]
[1752811648436,0.18790362,120110.0,120100.0,0.26088375]
[1752811648676,0.04097285,120110.0,120100.0,0.26327375]
[1752811648915,0.1795382,120110.0,120100.0,0.26327375]
[1752811649124,0.4905339,120110.0,120100.0,0.22419972]
[1752811649335,0.4905339,120110.0,120100.0,0.22180972]
[1752811650009,0.49885946,120110.0,120100.0,0.22180972]
[1752811651722,0.4905339,120110.0,120100.0,0.22180972]
[1752811651927,0.1795382,120110.0,120100.0,0.22180972]
[1752811652139,0.4905339,120110.0,120100.0,0.22180972]
[1752811652350,0.49885946,120110.0,120100.0,0.22180972]
[1752811652809,0.49885946,120110.0,120100.0,0.26088375]
[1752811653202,0.19618925,120110.0,120100.0,0.26088375]
[1752811653405,0.4905339,120110.0,120100.0,0.26088375]
[1752811653625,0.18786369,120110.0,120100.0,0.26088375]
[1752811653848,0.1795382,120110.0,120100.0,0.26088375]
[1752811654051,0.49053397,120110.0,120100.0,0.26088375]
[1752811654490,0.48220841,120110.0,120100.0,0.26088375]
[1752811654699,0.4905339,120110.0,120100.0,0.26088375]
[1752811655795,0.49053397,120110.0,120100.0,0.26088375]
[1752811657568,0.4934739,120110.0,120100.0,0.26088375]
[1752811657984,0.50179946,120110.0,120100.0,0.26088375]
[1752811658724,0.4934739,120110.0,120100.0,0.26088375]
[1752811659194,0.50179946,120110.0,120100.0,0.26088375]
[1752811659415,0.67663918,120110.0,120100.0,0.26088375]
[1752811659864,0.50179946,120110.0,120100.0,0.26088375]
[1752811660365,0.51012509,120110.0,120100.0,0.26088375]
[1752811660572,0.67663911,120110.0,120100.0,0.26088375]
[1752811660986,0.51012509,120110.0,120100.0,0.20630972]
[1752811663750,0.50179946,120110.0,120100.0,0.22170972]
[1752811663972,0.4934739,120110.0,120100.0,0.22170972]
[1752811664169,0.50179946,120110.0,120100.0,0.22170972]
[1752811664643,0.51012509,120110.0,120100.0,0.26077375]
[1752811665080,0.53958264,120110.0,120100.0,0.26077375]
[1752811665872,0.53958264,120110.0,120100.0,0.22170972]
[1752811666370,0.40934264,120110.0,120100.0,0.22170972]
[1752811666633,0.5033411,120110.0,120100.0,0.22170972]
[1752811666841,0.5033411,120110.0,120100.0,0.22409972]
[1752811667057,0.38142617,120110.0,120100.0,0.22409972]
[1752811667186,0.5033411,120110.0,120100.0,0.29720909]
[1752811667387,0.16288771,120110.0,120100.0,0.29720909]
[1752811667608,0.5033411,120110.0,120100.0,0.29720909]
[1752811668434,0.16288771,120110.0,120100.0,0.29720909]
[1752811668646,0.5033411,120110.0,120100.0,0.29720909]
[1752811668849,0.16288771,120110.0,120100.0,0.29720909]
[1752811669098,0.5033411,120110.0,120100.0,0.29720909]
[1752811669507,0.5033411,120110.0,120100.0,0.29481909]
[1752811670159,0.16288771,120110.0,120100.0,0.29481909]
[1752811670403,0.5033411,120110.0,120100.0,0.29481909]
[1752811670619,0.5033411,120110.0,120100.0,0.22170972]
[1752811670620,0.5033011,120110.0,120100.0,0.22170972]
[1752811670829,0.17117278,120110.0,120100.0,0.22170972]
[1752811671070,0.5033011,120110.0,120100.0,0.22170972]
[1752811671443,0.5033011,120110.0,120100.0,0.26077375]
[1752811671682,0.5033011,120110.0,120100.0,0.26316375]
[1752811672826,0.51162617,120110.0,120100.0,0.26077375]
[1752811673252,0.51162617,120110.0,120100.0,0.22170972]
[1752811673662,0.5033011,120110.0,120100.0,0.22170972]
[1752811674081,0.16284771,120110.0,120100.0,0.22170972]
[1752811674321,0.5033011,120110.0,120100.0,0.22170972]
[1752811676168,0.5033011,120110.0,120100.0,0.22409972]
[1752811676317,0.5033011,120110.0,120100.0,0.29497521]
[1752811676521,0.5033011,120110.0,120100.0,0.29258521]
[1752811680272,0.16284771,120110.0,120100.0,0.29258521]
[1752811680724,0.5085111,120110.0,120100.0,0.29060521]
[1752811680949,0.5085111,120110.0,120100.0,0.29267521]
[1752811681899,0.5033011,120110.0,120100.0,0.29267521]
[1752811682754,0.16284771,120110.0,120100.0,0.29267521]
[1752811683461,0.5033011,120110.0,120100.0,0.29267521]
[1752811683684,0.16284771,120110.0,120100.0,0.29267521]
[1752811683893,0.5033011,120110.0,120100.0,0.29267521]
[1752811684780,0.16284771,120110.0,120100.0,0.29267521]
[1752811684992,0.5033011,120110.0,120100.0,0.29267521]
[1752811686869,0.16284771,120110.0,120100.0,0.29267521]
[1752811695412,0.16596771,120110.0,120100.0,0.27727521]
[1752811695618,0.5084311,120110.0,120100.0,0.27727521]
[1752811695900,0.5032211,120110.0,120100.0,0.27727521]
[1752811696130,0.16276771,120110.0,120100.0,0.29227521]
[1752811696373,0.5032211,120110.0,120100.0,0.29227521]
[1752811696578,0.4786819,120110.0,120100.0,0.29227521]
[1752811696788,0.15176358,120110.0,120100.0,0.20639972]
[1752811697126,0.4838919,120110.0,120100.0,0.20639972]
[1752811697334,0.4838919,120110.0,120100.0,0.20432972]
[1752811698143,0.00810851,120110.0,120100.0,0.20878972]
[1752811698271,0.13818851,120110.0,120100.0,0.56215311]
[1752811698478,0.13008,120110.0,120100.0,0.29480809]
[1752811698695,0.35923339,120120.0,120110.0,0.19149028]
[1752811698903,0.49132339,120120.0,120110.0,0.19149028]
[1752811699118,0.50797236,120120.0,120110.0,0.19149028]
[1752811699324,0.50797236,120120.0,120110.0,0.2399131]
[1752811699529,0.52466272,120120.0,120110.0,0.2399131]
[1752811699727,0.53298758,120120.0,120110.0,0.19149028]
[1752811700068,1.03161709,120120.0,120110.0,0.18316507]
[1752811700284,1.03161709,120120.0,120100.0,0.27743796]
[1752811700285,0.00832514,120110.0,120100.0,0.26766373]
[1752811700491,0.37571388,120110.0,120100.0,0.26766373]
[1752811700700,0.37879388,120110.0,120100.0,0.26466373]
[1752811700909,0.4035953,120110.0,120100.0,0.26466373]
[1752811701143,0.40359516,120110.0,120100.0,0.26466373]
[1752811701358,0.40359502,120110.0,120100.0,0.26466373]
[1752811701490,0.4119203,120110.0,120100.0,0.26666373]
[1752811701695,0.40359502,120110.0,120100.0,0.26966373]
[1752811701903,0.37866988,120110.0,120100.0,0.26966373]
[1752811702109,0.50874988,120110.0,120100.0,0.26966373]
[1752811702393,0.48394846,120110.0,120100.0,0.26966373]
[1752811703020,0.47562339,120110.0,120100.0,0.26966373]
[1752811703448,0.13517,120110.0,120100.0,0.28728373]
[1752811703817,0.47562339,120110.0,120100.0,0.28728373]
[1752811704252,0.48394846,120110.0,120100.0,0.28516373]
[1752811704467,0.48394846,120110.0,120100.0,0.26966373]
[1752811704683,0.47562339,120110.0,120100.0,0.26966373]
[1752811705576,0.49162339,120110.0,120100.0,0.26966373]
[1752811706276,0.47562339,120110.0,120100.0,0.26966373]
[1752811707242,0.47562339,120110.0,120100.0,0.03162073]
[1752811707457,0.47562339,120110.0,120100.0,0.19814862]
[1752811707672,0.47562339,120110.0,120100.0,0.20647452]
[1752811708301,0.48394853,120110.0,120100.0,0.20647452]
[1752811708517,0.49178339,120110.0,120100.0,0.20647452]
[1752811708961,0.4639043,120110.0,120100.0,0.20647534]
[1752811709167,0.5939443,120110.0,120100.0,0.20647534]
[1752811709383,0.59394423,120110.0,120100.0,0.20647534]
[1752811709815,0.58561888,120110.0,120100.0,0.20647534]
[1752811710433,0.60944423,120110.0,120100.0,0.19650622]
[1752811710647,0.59394423,120110.0,120100.0,0.19650622]
[1752811711333,0.60226965,120110.0,120100.0,0.19650622]
[1752811711552,0.59394423,120110.0,120100.0,0.19650622]
[1752811712219,0.56109367,120110.0,120100.0,0.19650622]
[1752811712429,0.00201,120110.0,120100.0,0.2673409]
[1752811712671,0.13004,120110.0,120100.0,0.2673409]
[1752811713116,0.13312,120110.0,120100.0,0.2515409]
[1752811713807,0.47357339,120110.0,120100.0,0.2515409]
[1752811714218,0.48189853,120110.0,120100.0,0.2515409]
[1752811714662,0.48390853,120110.0,120100.0,0.25170296]
[1752811715120,0.49223388,120110.0,120100.0,0.23448296]
[1752811715334,0.51645944,120110.0,120100.0,0.23448296]
[1752811715554,0.51645937,120110.0,120100.0,0.23448296]
[1752811716180,0.50813388,120110.0,120100.0,0.23448296]
[1752811716430,0.51645944,120110.0,120100.0,0.23448296]
[1752811716637,0.60196972,120110.0,120100.0,0.19666828]
[1752811717055,0.59364416,120110.0,120100.0,0.19666828]
[1752811717266,0.60196972,120110.0,120100.0,0.19666828]
[1752811718292,0.26151633,120110.0,120100.0,0.19666828]
[1752811718496,0.59364416,120110.0,120100.0,0.19666828]
[1752811718701,0.60196958,120110.0,120100.0,0.19666828]
[1752811719107,0.61029507,120110.0,120100.0,0.19666828]
[1752811719394,0.61862063,120110.0,120100.0,0.19666828]
[1752811719748,0.58531874,120110.0,120100.0,0.23461917]
[1752811720165,0.59364395,120110.0,120100.0,0.23461917]
[1752811721500,0.46360402,120110.0,120100.0,0.19666828]
[1752811721723,0.59360402,120110.0,120100.0,0.19666828]
[1752811722600,0.23650028,120110.0,120100.0,0.19666828]
[1752811722843,0.43105367,120110.0,120100.0,0.19666828]
[1752811723091,0.56937888,120110.0,120100.0,0.19666828]
[1752811723342,0.58547888,120110.0,120100.0,0.19666828]
[1752811723587,0.57715367,120110.0,120100.0,0.26866451]
[1752811723836,0.56105367,120110.0,120100.0,0.26866451]
[1752811724253,0.56937874,120110.0,120100.0,0.26866451]
[1752811724457,0.56933874,120110.0,120100.0,0.26866451]
[1752811724670,0.57766395,120110.0,120100.0,0.26866451]
[1752811724880,0.64676874,120110.0,120100.0,0.26866451]
[1752811725132,0.61021465,120110.0,120100.0,0.26866451]
[1752811726013,0.78505423,120110.0,120100.0,0.26866451]
[1752811726962,0.78505423,120110.0,120100.0,0.19666828]
[1752811728029,0.77672916,120110.0,120100.0,0.18001627]
[1752811728239,0.77672916,120110.0,120100.0,0.20499446]
[1752811728453,0.78505479,120110.0,120100.0,0.20499453]
[1752811728670,0.77672916,120110.0,120100.0,0.21332043]
[1752811729590,0.7684036,120110.0,120100.0,0.21332043]
[1752811730067,0.77672916,120110.0,120100.0,0.25293654]
[1752811730727,0.60188958,120110.0,120100.0,0.25293654]
[1752811730936,0.77672916,120110.0,120100.0,0.25293654]
[1752811731151,0.60188958,120110.0,120100.0,0.25293654]
[1752811733099,0.61021507,120110.0,120100.0,0.25293654]
[1752811733311,0.78505465,120110.0,120100.0,0.25293654]
[1752811733936,0.77672909,120110.0,120100.0,0.25293654]
[1752811734129,0.60188958,120110.0,120100.0,0.25293654]
[1752811734591,0.7684036,120110.0,120100.0,0.25293654]
[1752811734801,0.60188958,120110.0,120100.0,0.25293654]
[1752811735017,0.60188958,120110.0,120100.0,0.21332043]
[1752811737199,0.60188951,120110.0,120100.0,0.21332043]
[1752811737351,0.610215,120110.0,120100.0,0.21332043]
[1752811737554,0.79172902,120110.0,120100.0,0.19666856]
[1752811737766,0.77672902,120110.0,120100.0,0.24214803]
[1752811738022,0.610215,120110.0,120100.0,0.2421481]
[1752811738188,0.610215,120110.0,120100.0,0.250474]
[1752811738401,0.78505465,120110.0,120100.0,0.2421481]
[1752811738592,0.78505465,120110.0,120100.0,0.20499453]
[1752811738797,0.77672902,120110.0,120100.0,0.20499453]
[1752811739366,0.78501465,120110.0,120100.0,0.18834252]
[1752811739617,0.78501514,120110.0,120100.0,0.23215694]
[1752811739829,0.77668944,120110.0,120100.0,0.23215694]
[1752811740042,0.77668944,120110.0,120100.0,0.24048298]
[1752811740451,0.77668944,120110.0,120100.0,0.23215694]
[1752811740667,0.77668944,120110.0,120100.0,0.24048298]
[1752811741044,0.77668944,120110.0,120100.0,0.23215694]
[1752811741203,0.43623605,120110.0,120100.0,0.24048298]
[1752811741403,0.77668944,120110.0,120100.0,0.23215694]
[1752811741598,0.77668944,120110.0,120100.0,0.24048298]
[1752811741809,0.76836381,120110.0,120100.0,0.24880853]
[1752811742019,0.59352402,120110.0,120100.0,0.24880853]
[1752811742446,0.25307063,120110.0,120100.0,0.24880853]
[1752811742640,0.56929874,120110.0,120100.0,0.24880853]
[1752811742925,0.57762395,120110.0,120100.0,0.24880853]
[1752811743211,0.5859493,120110.0,120100.0,0.24880853]
[1752811743967,0.59427472,120110.0,120100.0,0.24880853]
[1752811744172,0.5859493,120110.0,120100.0,0.24880853]
[1752811744482,0.58594923,120110.0,120100.0,0.24880853]
[1752811744738,0.5859493,120110.0,120100.0,0.24880853]
[1752811744916,0.23717056,120110.0,120100.0,0.24880853]
[1752811745165,0.58594937,120110.0,120100.0,0.24880853]
[1752811745477,0.57762395,120110.0,120100.0,0.24880853]
[1752811745679,0.23717056,120110.0,120100.0,0.24880853]
[1752811745808,0.57762395,120110.0,120100.0,0.24880853]
[1752811746013,0.5859493,120110.0,120100.0,0.24880853]
[1752811746245,0.24549584,120110.0,120100.0,0.26460853]
[1752811746446,0.58594923,120110.0,120100.0,0.26460853]
[1752811746731,0.59427458,120110.0,120100.0,0.26460853]
[1752811747117,0.58594923,120110.0,120100.0,0.26460853]
[1752811747255,0.09060028,120110.0,120100.0,0.26460853]
[1752811747488,0.56925881,120110.0,120100.0,0.26674853]
[1752811747864,0.56925874,120110.0,120100.0,0.26674853]
[1752811748076,0.57758395,120110.0,120100.0,0.26674853]
[1752811748299,0.56925874,120110.0,120100.0,0.26674853]
[1752811748502,0.57758402,120110.0,120100.0,0.26674853]
[1752811748704,0.68263969,120110.0,120100.0,0.26674853]
[1752811748917,0.6909649,120110.0,120100.0,0.26674853]
[1752811749423,0.35051151,120110.0,120100.0,0.26674853]
[1752811749629,0.6909649,120110.0,120100.0,0.26674853]
[1752811750087,0.68263969,120110.0,120100.0,0.26674853]
[1752811750821,0.69929018,120110.0,120100.0,0.21332022]
[1752811751474,0.69929011,120110.0,120100.0,0.21332022]
[1752811751701,0.69929004,120110.0,120100.0,0.21332022]
[1752811752414,0.69096483,120110.0,120100.0,0.21332022]
[1752811752621,0.69929011,120110.0,120100.0,0.21332022]
[1752811752838,0.69929011,120110.0,120100.0,0.2543763]
[1752811753054,0.69096483,120110.0,120100.0,0.2543763]
[1752811753261,0.58561011,120110.0,120100.0,0.2543763]
[1752811753472,0.70712483,120110.0,120100.0,0.2543763]
[1752811753902,0.69879969,120110.0,120100.0,0.2543763]
[1752811754407,0.69047462,120110.0,120100.0,0.2543763]
[1752811754842,0.69879969,120110.0,120100.0,0.2543763]
[1752811755020,0.67427462,120110.0,120100.0,0.2543763]
[1752811755286,0.68259969,120110.0,120100.0,0.2543763]
[1752811755491,0.67427462,120110.0,120100.0,0.2543763]
[1752811757413,0.69829976,120110.0,120100.0,0.2543763]
[1752811757865,0.70662504,120110.0,120100.0,0.2543763]
[1752811758072,0.70662504,120110.0,120100.0,0.21332022]
[1752811758400,0.23633165,120110.0,120100.0,0.21332022]
[1752811758816,0.71495039,120110.0,120100.0,0.21332022]
[1752811759997,0.70662504,120110.0,120100.0,0.21332022]
[1752811761474,0.71495039,120110.0,120100.0,0.21332022]
[1752811761706,0.71495039,120110.0,120100.0,0.2528163]
[1752811762083,0.72327588,120110.0,120100.0,0.21332022]
[1752811762558,0.88978997,120110.0,120100.0,0.21332022]
[1752811762772,0.72327595,120110.0,120100.0,0.21332022]
[1752811763419,6.81557994,120110.0,120100.0,0.00516206]
[1752811763695,6.91588041,120110.0,120100.0,0.00516206]
[1752811763904,6.70032079,120110.0,120100.0,0.00516206]
[1752811764079,6.98012079,120110.0,120100.0,0.00516206]
[1752811764312,7.13012079,120110.0,120100.0,0.00516206]
[1752811764527,7.13012079,120110.0,120100.0,0.00316206]
[1752811764739,7.13012079,120110.0,120100.0,0.00016206]
[1752811764963,7.13012079,120110.0,120100.0,0.00216206]
[1752811765228,7.13012079,120110.0,120100.0,0.00116206]
[1752811765229,7.47057418,120110.0,120100.0,0.00116206]
[1752811765448,7.15513379,120110.0,120100.0,0.00116206]
[1752811765887,6.72533379,120110.0,120100.0,0.00116206]
[1752811766113,6.82669408,120110.0,120100.0,0.00016206]
[1752811766559,6.85613379,120110.0,120100.0,0.00016206]
[1752811767190,6.47804983,120110.0,120100.0,0.00016206]
[1752811767397,6.34924983,120110.0,120100.0,0.00016206]
[1752811767623,6.47904983,120110.0,120100.0,0.00016206]
[1752811767837,1.47904983,120110.0,120100.0,0.00016206]
[1752811768031,6.47904983,120110.0,120100.0,0.00016206]
[1752811768969,1.00731826,120090.0,120080.0,0.0002]
[1752811769219,6.44163192,120090.0,120080.0,0.0002]
[1752811769350,6.57143192,120090.0,120080.0,0.0002]
[1752811769558,6.57438192,120090.0,120080.0,0.0002]
[1752811770179,6.59939892,120090.0,120080.0,0.0012]
[1752811770378,6.56995921,120090.0,120080.0,0.0012]
[1752811771201,6.56995921,120090.0,120080.0,0.0022]
[1752811771641,6.26713639,120090.0,120080.0,0.0022]
[1752811771852,6.11713639,120090.0,120080.0,0.0022]
[1752811772060,6.26713639,120090.0,120080.0,0.0022]
[1752811772764,6.11713639,120090.0,120080.0,0.0022]
[1752811772982,6.59939892,120090.0,120080.0,0.0022]
[1752811773819,6.59939892,120090.0,120080.0,0.0012]
[1752811774038,6.59939892,120090.0,120080.0,0.0002]
[1752811774462,0.18325648,120050.0,120040.0,0.0002]
[1752811774666,0.70338958,120050.0,120040.0,0.0157]
[1752811774883,0.69801007,120050.0,120040.0,0.0157]
[1752811775360,0.69801007,120050.0,120040.0,0.0371687]
[1752811775774,0.69801007,120050.0,120040.0,0.02085015]
[1752811776224,0.39518725,120050.0,120040.0,0.02485015]
[1752811776438,0.69801007,120050.0,120040.0,0.02485015]
[1752811776666,0.72314604,120050.0,120040.0,0.02485015]
[1752811777087,0.72314604,120050.0,120040.0,0.01985015]
[1752811777298,0.72314604,120050.0,120040.0,0.01585015]
[1752811777519,0.72314604,120050.0,120040.0,0.01985015]
[1752811778832,0.72314604,120050.0,120040.0,0.02285015]
[1752811782046,0.74691809,120050.0,120040.0,0.00735015]
[1752811782377,0.73131809,120050.0,120040.0,0.00735015]
[1752811783622,0.73131809,120050.0,120040.0,0.02325015]
[1752811784286,6.22131809,120050.0,120040.0,0.00735015]
[1752811784478,6.26685894,120050.0,120040.0,0.00735015]
[1752811784698,6.29188394,120050.0,120040.0,0.00735015]
[1752811786512,6.29188394,120050.0,120040.0,0.00335015]
[1752811786964,6.29188394,120050.0,120040.0,0.00635015]
[1752811787174,6.32132365,120050.0,120040.0,0.00635015]
[1752811789959,6.27644394,120050.0,120040.0,0.00335015]
[1752811790166,6.27644394,120050.0,120040.0,0.00035015]
[1752811790398,6.27644394,120050.0,120040.0,0.00135015]
[1752811791085,6.14668394,120050.0,120040.0,0.00135015]
[1752811791304,6.27644394,120050.0,120040.0,0.00335015]
[1752811791729,6.27644394,120050.0,120040.0,0.00135015]
[1752811792176,6.27644394,120050.0,120040.0,0.00235015]
[1752811792396,6.14668394,120050.0,120040.0,0.00235015]
[1752811792621,1.26080394,120050.0,120040.0,0.01805015]
[1752811792838,6.23577894,120050.0,120040.0,0.01805015]
[1752811793056,6.25087894,120050.0,120040.0,0.00235015]
[1752811796159,6.26597894,120050.0,120040.0,0.00235015]
[1752811796805,6.25087894,120050.0,120040.0,0.00188015]
[1752811797458,5.94805612,120050.0,120040.0,0.00188015]
[1752811797666,6.25087894,120050.0,120040.0,0.00188015]
[1752811799606,5.95817739,120050.0,120040.0,0.00188015]
[1752811799831,0.95322739,120050.0,120040.0,0.03414015]
[1752811800043,0.74290739,120050.0,120040.0,0.0561418]
[1752811800502,1.07457802,120050.0,120040.0,0.0561418]
[1752811800954,1.07457802,120050.0,120040.0,0.03414015]
[1752811802229,1.07457802,120050.0,120040.0,0.01904015]
[1752811802230,1.07964802,120050.0,120040.0,0.01904015]
[1752811802452,1.07964802,120050.0,120040.0,0.01688015]
[1752811802683,6.12508773,120050.0,120040.0,0.00188015]
[1752811804051,6.14048773,120050.0,120040.0,0.00188015]
[1752811806085,6.12508773,120050.0,120040.0,0.00188015]
[1752811811213,5.69258491,120050.0,120040.0,0.00188015]
[1752811811468,6.07960802,120050.0,120040.0,0.01688015]
[1752811811694,5.94996802,120050.0,120040.0,0.01688015]
[1752811812132,6.07960802,120050.0,120040.0,0.01688015]
[1752811812345,5.94996802,120050.0,120040.0,0.01688015]
[1752811812555,6.07956802,120050.0,120040.0,0.01688015]
[1752811814488,5.6471452,120050.0,120040.0,0.01688015]
[1752811814699,6.07956802,120050.0,120040.0,0.01688015]
[1752811816331,1.07956802,120050.0,120040.0,0.01688015]
[1752811816535,6.07956802,120050.0,120040.0,0.01688015]
[1752811817596,6.07956802,120050.0,120040.0,0.00188015]
[1752811817597,6.09546802,120050.0,120040.0,0.00188015]
[1752811817800,6.4422714,120050.0,120040.0,0.00188015]
[1752811818038,6.4574714,120050.0,120040.0,0.00188015]
[1752811818437,0.53084153,120040.0,120030.0,0.0002]
[1752811818667,0.53084153,120040.0,120000.0,0.17677279]
[1752811818668,0.69608527,120010.0,120000.0,0.17677279]
[1752811818927,6.45100176,120010.0,120000.0,0.17727278]
[1752811819146,6.56595175,120010.0,120000.0,0.17727278]
[1752811819360,6.43635175,120010.0,120000.0,0.17727278]
[1752811819572,6.56595175,120010.0,120000.0,0.17727278]
[1752811819992,6.21844922,120010.0,120000.0,0.17727278]
[1752811820206,6.18800837,120010.0,120000.0,0.17827278]
[1752811820626,6.50583119,120010.0,120000.0,0.17827278]
[1752811820839,6.52136819,120010.0,120000.0,0.17827278]
[1752811821412,6.52136819,120010.0,120000.0,0.17927278]
[1752811821786,1.20354537,120010.0,120000.0,0.17927278]
[1752811821984,6.2118778,120010.0,120000.0,0.35427277]
[1752811822191,1.03287837,120010.0,120000.0,0.18129278]
[1752811822386,1.03287837,120010.0,120000.0,0.19709278]
[1752811823978,0.90844837,120010.0,120000.0,0.19709278]
[1752811824229,1.10804837,120010.0,120000.0,0.19709278]
[1752811824667,0.66216305,120010.0,120000.0,0.21269278]
[1752811824899,0.52331714,120010.0,120000.0,0.23240206]
[1752811825104,0.97236502,120010.0,120000.0,0.21269278]
[1752811825518,0.97236502,120010.0,120000.0,0.22102604]
[1752811825732,0.97236502,120010.0,120000.0,0.3876927]
[1752811825942,0.62403239,120010.0,120000.0,0.39602589]
[1752811826163,0.63236495,120010.0,120000.0,0.39602589]
[1752811826377,0.63236495,120010.0,120000.0,0.3876927]
[1752811826585,0.63236495,120010.0,120000.0,0.39602582]
[1752811826828,0.62403239,120010.0,120000.0,0.40435894]
[1752811827039,0.50280495,120010.0,120000.0,0.39602589]
[1752811827243,0.62403239,120010.0,120000.0,0.3876927]
[1752811827457,0.64069752,120010.0,120000.0,0.39602589]
[1752811827662,0.60736767,120010.0,120000.0,0.40674894]
[1752811827878,0.31287707,120010.0,120000.0,0.41508178]
[1752811828099,0.32120943,120010.0,120000.0,0.41508185]
[1752811828309,0.32120936,120010.0,120000.0,0.40674894]
[1752811828531,0.32954213,120010.0,120000.0,0.21508278]
[1752811828766,0.62403287,120010.0,120000.0,0.22102611]
[1752811828985,0.32121005,120010.0,120000.0,0.39602603]
[1752811829197,0.32120998,120010.0,120000.0,0.41269234]
[1752811829428,0.6240328,120010.0,120000.0,0.41269234]
[1752811829635,0.61570024,120010.0,120000.0,0.4234149]
[1752811829846,0.13789201,120010.0,120000.0,0.48242448]
[1752811830288,0.12956,120010.0,120000.0,0.48242448]
[1752811830521,0.13789201,120010.0,120000.0,0.48242448]
[1752811830795,0.56084433,120020.0,120010.0,0.22294991]
[1752811830796,0.00833138,120020.0,120010.0,0.22294991]
[1752811830994,0.16288636,120020.0,120010.0,0.29736652]
[1752811831207,0.15455456,120020.0,120010.0,0.29975652]
[1752811831456,0.44904572,120020.0,120010.0,0.29975652]
[1752811831668,0.45737738,120020.0,120010.0,0.29975652]
[1752811831881,0.12956,120020.0,120010.0,0.29975652]
[1752811832116,0.13789131,120020.0,120010.0,0.29162354]
[1752811832320,0.14622276,120020.0,120010.0,0.29162354]
[1752811832535,0.12956,120020.0,120010.0,0.29162354]
[1752811833601,0.83445312,120030.0,120020.0,0.22193408]
[1752811833821,0.90000075,120030.0,120020.0,0.22395408]
[1752811834045,0.90833193,120030.0,120020.0,0.22395415]
[1752811834296,0.77213412,120030.0,120020.0,0.23228567]
[1752811834542,1.07495687,120030.0,120020.0,0.23228567]
[1752811834765,1.07595687,120030.0,120020.0,0.22395415]
[1752811834998,1.06762576,120030.0,120020.0,0.27049347]
[1752811835233,0.02644592,120030.0,120020.0,0.27882492]
[1752811835462,0.001,120030.0,120020.0,0.28121492]
[1752811835676,0.13052,120030.0,120020.0,0.28121492]
[1752811835917,0.13152,120030.0,120020.0,0.28121492]
[1752811836126,0.14818159,120030.0,120020.0,0.28121492]
[1752811836542,0.13785069,120030.0,120020.0,0.28121492]
[1752811836750,0.12952,120030.0,120020.0,0.28321492]
[1752811836959,0.13785069,120030.0,120020.0,0.28521492]
[1752811837165,0.12952,120030.0,120020.0,0.28521492]
[1752811837382,0.13785069,120030.0,120020.0,0.28521492]
[1752811837582,0.14618159,120030.0,120020.0,0.28521492]
[1752811837790,0.13785069,120030.0,120020.0,0.28521492]
[1752811838443,0.12952,120030.0,120020.0,0.28521492]
[1752811838647,0.14618145,120030.0,120020.0,0.2386756]
[1752811839439,0.32946847,120030.0,120020.0,0.23034415]
[1752811839688,0.62076012,120030.0,120020.0,0.004]
[1752811839908,0.75160602,120030.0,120020.0,0.004]
[1752811840120,5.76770602,120030.0,120020.0,0.004]
[1752811842061,5.7377704,120030.0,120020.0,0.004]
[1752811842550,6.0777704,120030.0,120020.0,0.004]
[1752811843436,6.0616704,120030.0,120020.0,0.004]
[1752811844982,6.0766704,120030.0,120020.0,0.004]
[1752811845987,6.0766704,120030.0,120020.0,0.002]
[1752811846229,0.18331756,120010.0,120000.0,0.16192397]
[1752811846480,0.61773038,120010.0,120000.0,0.16192397]
[1752811846718,0.62079038,120010.0,120000.0,0.16192397]
[1752811847174,0.49127038,120010.0,120000.0,0.35434396]
[1752811847390,0.63232488,120010.0,120000.0,0.38870034]
[1752811847578,0.63232488,120010.0,120000.0,0.38631034]
[1752811848063,0.61566051,120010.0,120000.0,0.35434396]
[1752811848281,0.61566051,120010.0,120000.0,0.1876773]
[1752811848456,0.61255815,120010.0,120000.0,0.17732397]
[1752811848772,0.61255815,120010.0,120000.0,0.17932397]